bitfinex/quotes_SOLUSD_20260310
["timestamp","ask_amount","ask_price","bid_price","bid_amount"]
[1773128018511,0.77567748,86.815,86.79,10.94413779]
[1773128019092,0.1,86.82,86.798,0.76689578]
[1773128019299,0.1,86.82,86.8,10.94413779]
[1773128021297,0.1,86.82,86.801,0.76689578]
[1773128022590,0.1,86.82,86.8,10.94413779]
[1773128022591,0.77567748,86.837,86.81,10.94413779]
[1773128022809,0.77567748,86.845,86.821,0.76689578]
[1773128023717,0.77567748,86.84,86.81,10.94413779]
[1773128024947,0.77567748,86.838,86.81,10.94413779]
[1773128027119,12.29150598,86.837,86.81,10.94413779]
[1773128028126,12.29150598,86.837,86.81,11.71103357]
[1773128028417,0.8089039,86.836,86.81,11.71103357]
[1773128030021,0.8089039,86.823,86.791,0.78381925]
[1773128030202,0.8089039,86.83,86.801,0.78381925]
[1773128030403,0.8089039,86.83,86.81,10.94413779]
[1773128031117,11.51609374,86.835,86.811,0.78381925]
[1773128031417,11.51609374,86.835,86.812,0.78381925]
[1773128031624,12.32499764,86.835,86.812,0.78381925]
[1773128031918,324.2026533,90.964,86.821,0.78381925]
[1773128031919,46.02904634,86.902,86.821,0.78381925]
[1773128032217,10.94413779,86.88,86.841,0.78381925]
[1773128032619,11.04413779,86.87,86.831,0.78381925]
[1773128033300,0.1,86.87,86.851,0.78381925]
[1773128033501,22.45297855,86.89,86.861,0.78381925]
[1773128033712,11.50884076,86.89,86.861,0.78381925]
[1773128034030,11.50906914,86.888,86.861,0.78381925]
[1773128034328,0.8089039,86.887,86.861,0.78381925]
[1773128034703,0.8089039,86.887,86.854,0.78381925]
[1773128035316,0.8089039,86.887,86.85,11.72795704]
[1773128035514,0.8089039,86.887,86.851,0.78381925]
[1773128035918,0.8089039,86.887,86.852,0.78381925]
[1773128038315,40.28266923,86.886,86.852,0.78381925]
[1773128038521,0.8089039,86.885,86.852,0.78381925]
[1773128040929,0.8089039,86.869,86.843,0.78381925]
[1773128041140,0.8089039,86.859,86.824,0.78381925]
[1773128041309,0.8089039,86.859,86.83,10.94413779]
[1773128041507,0.8089039,86.859,86.83,11.72795704]
[1773128041724,0.8089039,86.859,86.831,0.78381925]
[1773128044027,12.32191625,86.859,86.833,0.81379998]
[1773128045112,0.76119022,86.849,86.825,0.81379998]
[1773128045316,0.76119022,86.849,86.812,0.81379998]
[1773128045616,0.76119022,86.839,86.812,0.81379998]
[1773128045917,11.51569589,86.838,86.812,0.81379998]
[1773128046107,12.27688611,86.838,86.812,0.81379998]
[1773128046309,11.51511028,86.843,86.814,0.81379998]
[1773128046626,12.2763005,86.843,86.814,0.81379998]
[1773128047511,11.51423735,86.849,86.816,0.81379998]
[1773128047713,12.27542757,86.849,86.816,0.81379998]
[1773128047914,0.76119022,86.848,86.816,0.81379998]
[1773128048923,10.91957609,86.84,86.816,0.81379998]
[1773128049109,10.91957609,86.84,86.807,0.81379998]
[1773128049110,0.76119022,86.839,86.807,0.81379998]
[1773128049310,0.76119022,86.839,86.769,46.09938644]
[1773128049311,0.76119022,86.829,86.802,11.52043271]
[1773128049518,0.76119022,86.829,86.802,12.33423269]
[1773128049721,0.76119022,86.819,86.795,0.81379998]
[1773128050034,11.51702215,86.828,86.797,0.81379998]
[1773128050326,0.76119022,86.827,86.797,0.81379998]
[1773128051132,0.76119022,86.827,86.801,0.81379998]
[1773128052731,11.51702215,86.828,86.802,0.81379998]
[1773128054340,10.91957609,86.82,86.791,0.81379998]
[1773128054636,46.05641924,86.85,86.77,0.28432314]
[1773128054637,0.76119022,86.908,86.816,0.57942979]
[1773128054964,0.76119022,86.908,86.89,10.91957609]
[1773128055135,0.76119022,86.908,86.873,0.58109211]
[1773128055317,0.76119022,86.908,86.88,10.91957609]
[1773128056333,11.50628818,86.909,86.881,0.58273474]
[1773128056532,0.1,86.91,86.89,10.91957609]
[1773128057129,0.86119022,86.91,86.89,10.91957609]
[1773128058522,11.50628818,86.909,86.89,10.91957609]
[1773128060028,11.50628818,86.909,86.9,10.91957609]
[1773128060245,0.1,86.91,86.9,10.91957609]
[1773128061039,11.50522912,86.917,86.9,10.91957609]
[1773128061040,11.50442405,86.924,86.9,10.91957609]
[1773128061436,0.76119022,86.923,86.9,10.91957609]
[1773128062256,0.76119022,86.923,86.87,0.28432314]
[1773128062257,10.91957609,86.92,86.879,0.59221931]
[1773128062544,10.91957609,86.92,86.89,10.91957609]
[1773128062545,0.76119022,86.919,86.89,10.91957609]
[1773128063127,0.76119022,86.917,86.89,10.91957609]
[1773128064038,0.76119022,86.917,86.88,10.91957609]
[1773128064246,0.76119022,86.917,86.876,12.10580979]
[1773128064444,0.76119022,86.917,86.88,10.91957609]
[1773128065150,0.76119022,86.909,86.88,10.91957609]
[1773128066344,0.76119022,86.907,86.89,10.91957609]
[1773128066826,11.50642058,86.908,86.89,10.91957609]
[1773128067027,0.76119022,86.907,86.88,10.91957609]
[1773128068853,10.91957609,86.92,86.87,10.91957609]
[1773128068854,0.76119022,86.905,86.87,10.91957609]
[1773128069054,0.76119022,86.899,86.87,10.91957609]
[1773128069755,0.76119022,86.899,86.87,10.90505829]
[1773128071053,0.76119022,86.897,86.87,10.90505829]
[1773128071235,11.50774471,86.898,86.88,10.90505829]
[1773128071432,11.50774471,86.898,86.881,0.60525978]
[1773128071835,11.50774471,86.898,86.88,10.90505829]
[1773128073058,0.76119022,86.903,86.88,10.90505829]
[1773128074754,0.76119022,86.903,86.87,11.51437105]
[1773128075060,0.84263911,86.901,86.871,0.61063319]
[1773128075859,40.27525257,86.902,86.881,0.61193986]
[1773128076356,40.27525257,86.902,86.88,10.90505829]
[1773128076357,0.84263911,86.901,86.88,10.90505829]
[1773128076541,0.84263911,86.899,86.87,10.90505829]
[1773128077545,0.84263911,86.889,86.85,10.90505829]
[1773128079449,0.84263911,86.887,86.86,10.90505829]
[1773128079853,40.281742,86.888,86.833,0.83614676]
[1773128079854,0.84263911,86.869,86.833,0.83614676]
[1773128081763,40.29101624,86.868,86.833,0.83614676]
[1773128081966,41.13365535,86.868,86.841,0.83614676]
[1773128082868,11.51171892,86.868,86.841,0.83614676]
[1773128083974,0.84263911,86.868,86.841,0.83614676]
[1773128086168,0.84263911,86.866,86.841,0.83614676]
[1773128086473,0.84263911,86.866,86.831,0.83614676]
[1773128086871,0.84263911,86.866,86.84,10.90505829]
[1773128087171,0.84263911,86.866,86.84,11.74120505]
[1773128088059,0.84263911,86.866,86.841,0.83614676]
[1773128088261,11.5121165,86.865,86.841,0.83614676]
[1773128088651,12.35475561,86.865,86.841,0.83614676]
[1773128089064,0.84263911,86.864,86.841,0.83614676]
[1773128089256,11.51238156,86.863,86.841,0.83614676]
[1773128089458,12.32758842,86.863,86.841,0.83614676]
[1773128089664,11.51238156,86.863,86.841,0.83614676]
[1773128090976,0.81520686,86.867,86.84,10.90505829]
[1773128091157,0.81520686,86.867,86.83,10.90505829]
[1773128091360,0.81520686,86.859,86.828,0.86248364]
[1773128091881,0.81520686,86.859,86.831,0.86248364]
[1773128092864,11.51304427,86.858,86.831,0.86248364]
[1773128093178,0.81520686,86.857,86.831,0.86248364]
[1773128093970,11.51304427,86.858,86.841,0.86248364]
[1773128094791,11.51224903,86.864,86.841,0.86248364]
[1773128095085,40.29287161,86.864,86.841,0.86248364]
[1773128095286,41.10807847,86.864,86.841,0.86248364]
[1773128095675,11.51224903,86.864,86.841,0.86248364]
[1773128097084,0.81520686,86.866,86.841,0.86248364]
[1773128097671,0.81520686,86.866,86.834,0.86248364]
[1773128097866,0.81520686,86.859,86.82,4.0758949]
[1773128098090,0.81520686,86.859,86.83,4.0758949]
[1773128098478,0.81520686,86.859,86.83,4.93837854]
[1773128098672,0.81520686,86.859,86.831,0.86248364]
[1773128099089,11.51304427,86.858,86.841,0.86248364]
[1773128100786,11.51304427,86.858,86.831,0.86248364]
[1773128101088,0.81520686,86.857,86.831,0.86248364]
[1773128101592,11.51330938,86.856,86.831,0.86248364]
[1773128102562,11.15803086,86.856,86.841,0.86248364]
[1773128102776,10.44747382,86.856,86.841,0.86248364]
[1773128105684,10.44747382,86.856,86.84,4.0758949]
[1773128106191,0.84083438,86.866,86.85,4.0758949]
[1773128106398,0.84083438,86.875,86.851,0.83503452]
[1773128106772,0.84083438,86.875,86.82,0.28432314]
[1773128106773,0.84083438,86.875,86.842,0.83503452]
[1773128107102,0.84083438,86.875,86.774,46.09625003]
[1773128107103,0.84083438,86.849,86.82,4.0758949]
[1773128107795,0.84083438,86.847,86.82,4.0758949]
[1773128108301,0.84083438,86.847,86.82,4.91092942]
[1773128109094,0.84083438,86.847,86.814,11.51887944]
[1773128109467,0.84083438,86.847,86.815,0.83503452]
[1773128110096,0.84083438,86.847,86.81,4.0758949]
[1773128110097,40.27154527,86.91,86.844,0.42876967]
[1773128110280,40.27154527,86.91,86.88,4.0758949]
[1773128110281,0.84083438,86.909,86.88,4.0758949]
[1773128110478,0.84083438,86.909,86.87,4.0758949]
[1773128111103,0.84083438,86.899,86.87,4.0758949]
[1773128111775,11.50774471,86.898,86.87,4.0758949]
[1773128111994,0.84083438,86.897,86.871,11.51132138]
[1773128112591,11.50579627,86.913,86.89,4.0758949]
[1773128112982,0.84083438,86.917,86.9,4.0758949]
[1773128113878,11.50536149,86.916,86.9,4.0758949]
[1773128114079,12.34619587,86.916,86.9,4.0758949]
[1773128114601,4.0758949,86.93,86.9,4.0758949]
[1773128114602,11.50482504,86.921,86.9,4.0758949]
[1773128115108,0.84083438,86.92,86.9,4.0758949]
[1773128115903,0.84083438,86.926,86.91,4.0758949]
[1773128116202,11.50346615,86.931,86.91,4.0758949]
[1773128117582,11.50346615,86.931,86.92,4.0758949]
[1773128118601,11.50346615,86.931,86.91,4.0758949]
[1773128118797,0.84083438,86.934,86.92,4.0758949]
[1773128119005,12.343518,86.937,86.92,4.0758949]
[1773128119392,11.50268362,86.937,86.92,4.0758949]
[1773128119709,0.84083438,86.936,86.91,4.0758949]
[1773128120085,0.84083438,86.936,86.92,4.0758949]
[1773128120386,11.50268362,86.937,86.92,4.0758949]
[1773128120782,0.84083438,86.951,86.93,4.0758949]
[1773128121583,0.84083438,86.951,86.928,0.45612832]
[1773128121791,11.50127105,86.947,86.928,0.45612832]
[1773128121986,11.50127105,86.947,86.93,4.0758949]
[1773128122312,0.84083438,86.946,86.92,4.0758949]
[1773128123207,0.84083438,86.946,86.913,0.46069054]
[1773128123412,0.84083438,86.929,86.9,4.0758949]
[1773128124710,0.84083438,86.927,86.89,4.0758949]
[1773128125207,0.84083438,86.927,86.9,4.0758949]
[1773128125409,0.84083438,86.927,86.901,0.46736342]
[1773128127008,0.84083438,86.927,86.91,4.0758949]
[1773128128505,12.34487229,86.926,86.901,0.46736342]
[1773128128804,0.84083438,86.919,86.882,0.47378055]
[1773128129014,4.0758949,86.92,86.87,4.0758949]
[1773128129015,0.84083438,86.899,86.87,4.0758949]
[1773128129189,0.84083438,86.899,86.86,4.0758949]
[1773128129590,0.84083438,86.899,86.86,4.07228458]
[1773128129791,0.84083438,86.889,86.846,0.47588962]
[1773128129991,0.84083438,86.879,86.841,11.51529807]
[1773128130191,0.84083438,86.879,86.85,4.07228458]
[1773128130592,0.84083438,86.877,86.85,4.07228458]
[1773128131609,0.84083438,86.877,86.85,10.91096687]
[1773128134110,0.84083438,86.877,86.851,11.5139722]
[1773128134305,11.50987344,86.882,86.86,10.91096687]
[1773128137596,0.84861663,86.894,86.87,11.40470999]
[1773128137802,0.84861663,86.894,86.87,10.91096687]
[1773128138002,0.84861663,86.892,86.87,10.91096687]
[1773128138211,0.84861663,86.892,86.845,11.51476768]
[1773128138414,0.84861663,86.889,86.85,10.91096687]
[1773128139615,10.91096687,86.89,86.84,28.78837035]
[1773128139616,0.84861663,86.879,86.84,10.91096687]
[1773128140714,0.84861663,86.879,86.85,10.91096687]
[1773128141718,0.84861663,86.869,86.821,0.50107093]
[1773128141919,0.84861663,86.859,86.83,10.91096687]
[1773128143419,0.84861663,86.859,86.84,10.91096687]
[1773128144315,12.36154831,86.859,86.84,10.91096687]
[1773128144719,0.84861663,86.858,86.82,10.91096687]
[1773128145307,0.84861663,86.849,86.81,10.91096687]
[1773128145507,0.84861663,86.847,86.82,10.91096687]
[1773128145923,0.84861663,86.847,86.811,11.51927751]
[1773128147022,0.84861663,86.839,86.81,10.91096687]
[1773128147610,0.84861663,86.837,86.81,10.91096687]
[1773128148002,0.84861663,86.837,86.811,11.51927751]
[1773128148202,0.92737088,86.847,86.83,10.91096687]
[1773128148405,0.92737088,86.847,86.821,0.51479519]
[1773128148806,0.92737088,86.847,86.82,10.91096687]
[1773128150124,11.5146351,86.846,86.82,10.91096687]
[1773128150328,46.04234645,86.877,86.82,10.91096687]
[1773128150329,0.92737088,86.908,86.841,0.51803745]
[1773128150626,6.01111358,86.961,86.88,10.91096687]
[1773128150627,0.92737088,86.919,86.88,10.91096687]
[1773128151013,0.92737088,86.909,86.88,10.91096687]
[1773128151509,0.92737088,86.907,86.88,10.91096687]
[1773128153633,0.92737088,86.905,86.88,4.07076938]
[1773128155213,0.92737088,86.905,86.87,4.07076938]
[1773128155730,0.92737088,86.903,86.89,4.07076938]
[1773128155927,0.92737088,86.903,86.873,0.52573132]
[1773128156109,0.92737088,86.903,86.88,4.07076938]
[1773128157519,11.50721502,86.902,86.88,4.07076938]
[1773128157719,0.92737088,86.901,86.88,4.07076938]
[1773128159613,0.92737088,86.899,86.88,4.07076938]
[1773128160066,0.92737088,86.899,86.875,11.51077103]
[1773128160333,0.92737088,86.899,86.88,4.07076938]
[1773128160909,0.92737088,86.897,86.87,4.07076938]
[1773128161114,0.92737088,86.897,86.86,4.07076938]
[1773128161417,0.92737088,86.879,86.85,4.07076938]
[1773128161622,0.92737088,86.879,86.84,4.07076938]
[1773128161832,0.92737088,86.894,86.87,4.07076938]
[1773128163026,0.92737088,86.892,86.86,4.07076938]
[1773128164239,0.9416783,86.889,86.85,4.07076938]
[1773128164532,0.9416783,86.879,86.85,15.58487415]
[1773128164940,0.9416783,86.879,86.86,4.07076938]
[1773128165935,0.9416783,86.878,86.85,11.51410477]
[1773128166139,0.9416783,86.878,86.85,15.58487415]
[1773128166820,0.9416783,86.878,86.85,16.12743602]
[1773128167218,0.9416783,86.878,86.851,0.5438591]
[1773128167642,0.9416783,86.878,86.86,4.07076938]
[1773128168345,4.07076938,86.89,86.86,4.07076938]
[1773128168346,0.9416783,86.889,86.86,4.07076938]
[1773128169032,0.9416783,86.886,86.86,4.07076938]
[1773128169236,11.50946653,86.885,86.86,4.07076938]
[1773128169425,11.50946653,86.885,86.861,11.51264664]
[1773128169626,11.50946653,86.885,86.86,4.07076938]
[1773128169822,12.45114483,86.885,86.861,0.54641524]
[1773128170140,11.50946653,86.885,86.861,0.54641524]
[1773128170340,11.50946653,86.885,86.86,4.07076938]
[1773128170341,0.9416783,86.884,86.86,4.07076938]
[1773128170530,0.9416783,86.869,86.84,4.07076938]
[1773128170922,0.9416783,86.869,86.84,4.6184396]
[1773128171323,11.51171892,86.868,86.84,4.6184396]
[1773128171545,0.9416783,86.867,86.841,11.51529807]
[1773128172955,0.9416783,86.867,86.85,4.07076938]
[1773128173242,11.51123933,86.872,86.85,4.07076938]
[1773128173452,0.9416783,86.874,86.851,11.5139722]
[1773128173647,11.51103923,86.874,86.85,4.07076938]
[1773128173845,0.9416783,86.873,86.85,4.07076938]
[1773128174949,0.9416783,86.873,86.847,0.5495903]
[1773128174950,0.9416783,86.873,86.84,16.13607712]
[1773128175127,0.9416783,86.873,86.841,0.54992241]
[1773128175329,0.9416783,86.873,86.85,4.07076938]
[1773128175830,0.9416783,86.871,86.842,11.51516547]
[1773128176030,0.9416783,86.871,86.841,0.54992241]
[1773128176250,0.9416783,86.871,86.841,12.06513389]
[1773128176431,0.9416783,86.871,86.841,11.51521148]
[1773128178347,11.51145389,86.87,86.841,11.51521148]
[1773128178534,0.9416783,86.869,86.841,11.51521148]
[1773128178941,0.9416783,86.869,86.842,0.55119914]
[1773128179640,0.9416783,86.869,86.841,11.51521148]
[1773128179835,0.9416783,86.869,86.835,0.55151129]
[1773128180146,0.9416783,86.869,86.83,4.07076938]
[1773128180333,0.9416783,86.869,86.831,0.55180974]
[1773128180728,0.9416783,86.867,86.83,4.07076938]
[1773128180929,0.9416783,86.868,86.841,0.55180974]
[1773128181151,0.9416783,86.868,86.831,40.30818485]
[1773128181152,0.9416783,86.879,86.851,0.55180974]
[1773128182154,0.9416783,86.886,86.851,0.55180974]
[1773128182532,0.9416783,86.879,86.851,0.55180974]
[1773128182935,0.9416783,86.877,86.845,12.06717803]
[1773128183751,0.9416783,86.877,86.85,4.07076938]
[1773128184154,11.51065887,86.876,86.851,12.06670408]
[1773128184337,11.51065887,86.876,86.852,0.55302522]
[1773128185439,0.9416783,86.878,86.852,0.55302522]
[1773128186449,0.9416783,86.876,86.852,0.55302522]
[1773128186830,3.69383402,86.898,86.852,0.55302522]
[1773128186831,0.9416783,86.881,86.853,0.55357626]
[1773128187153,0.9416783,86.895,86.861,0.55357626]
[1773128187351,0.9416783,86.895,86.87,4.07076938]
[1773128187558,0.9416783,86.895,86.861,0.55357626]
[1773128187747,0.9416783,86.889,86.853,0.55385734]
[1773128188950,0.9416783,86.887,86.853,0.55385734]
[1773128189145,0.9416783,86.887,86.86,4.07076938]
[1773128189548,0.9416783,86.887,86.853,0.55441584]
[1773128189858,0.9416783,86.879,86.85,4.07076938]
[1773128190458,0.9416783,86.879,86.852,0.55468979]
[1773128191136,0.9416783,86.877,86.852,0.55468979]
[1773128191333,0.9416783,86.877,86.847,11.51446009]
[1773128193262,0.9416783,86.875,86.851,0.55550078]
[1773128193960,0.9416783,86.875,86.845,0.55576406]
[1773128194145,0.94893812,86.869,86.84,4.07428789]
[1773128194966,0.94893812,86.869,86.84,4.63032692]
[1773128195260,0.94893812,86.867,86.841,0.55629723]
[1773128195451,0.94893812,86.867,86.84,4.07428789]
[1773128195764,0.94893812,86.867,86.835,0.55629723]
[1773128196859,0.94893812,86.859,86.821,0.55655568]
[1773128197245,0.94893812,86.857,86.825,0.55681257]
[1773128197647,0.94893812,86.857,86.83,4.07428789]
[1773128199645,0.94893812,86.855,86.826,40.31050606]
[1773128199847,0.94893812,86.935,86.858,0.55733142]
[1773128200050,0.94893812,86.935,86.853,3.69383402]
[1773128200051,12.45181493,86.935,86.92,4.07428789]
[1773128200253,6.00351635,86.93,86.92,4.07428789]
[1773128200460,11.50287681,86.935,86.911,0.55755641]
[1773128201352,0.94893812,86.934,86.902,0.55778083]
[1773128201757,0.94893812,86.932,86.902,0.55778083]
[1773128203158,0.94893812,86.929,86.89,4.07428789]
[1773128203468,0.94893812,86.929,86.884,12.06760403]
[1773128203469,0.94893812,86.929,86.9,4.07428789]
[1773128203970,11.50377323,86.928,86.9,4.07428789]
[1773128204553,0.94893812,86.927,86.9,4.07428789]
[1773128205956,11.50403791,86.926,86.901,11.50734744]
[1773128206156,3.69383402,86.941,86.91,4.07428789]
[1773128206356,28.75419817,86.944,86.911,0.55886429]
[1773128206357,0.94893812,86.939,86.911,0.55886429]
[1773128206971,4.07428789,86.95,86.92,4.07428789]
[1773128207172,0.94893812,86.956,86.93,4.07428789]
[1773128207374,0.94893812,86.956,86.92,4.07428789]
[1773128207880,0.94893812,86.954,86.92,4.07428789]
[1773128209259,0.94893812,86.954,86.93,4.07428789]
[1773128210070,11.50046576,86.953,86.93,4.07428789]
[1773128210985,0.93381757,86.952,86.922,0.559661]
[1773128211563,0.93381757,86.952,86.93,4.07428789]
[1773128211769,0.93381757,86.952,86.922,0.559661]
[1773128211970,11.50073029,86.951,86.93,4.07428789]
[1773128212287,12.43454786,86.951,86.93,4.07428789]
[1773128213386,0.93381757,86.95,86.93,4.07428789]
[1773128214078,0.93381757,86.948,86.93,4.07428789]
[1773128216185,0.93381757,86.946,86.91,4.07428789]
[1773128216488,0.93381757,86.939,86.91,4.07428789]
[1773128217383,40.25440784,86.947,86.89,0.28432314]
[1773128217384,0.93381757,86.929,86.892,11.50848179]
[1773128217587,0.93381757,86.929,86.9,4.07428789]
[1773128218673,0.93381757,86.927,86.9,4.07428789]
[1773128220692,0.93381757,86.927,86.893,11.50833414]
[1773128220693,0.93381757,86.925,86.893,12.07005888]
[1773128220892,0.93381757,86.925,86.9,4.07428789]
[1773128221991,0.93381757,86.925,86.893,0.56172474]
[1773128222675,0.93381757,86.923,86.893,0.56172474]
[1773128223078,3.69383402,86.921,86.862,0.56207956]
[1773128223300,0.93381757,86.909,86.87,4.07428789]
[1773128223870,0.93381757,86.909,86.871,0.56243856]
[1773128224797,0.88134711,86.926,86.891,0.56262541]
[1773128224968,0.88134711,86.924,86.891,0.56262541]
[1773128225281,40.26459591,86.925,86.88,4.07428789]
[1773128225282,0.88134711,86.909,86.88,4.07428789]
[1773128226389,3.69383402,86.922,86.86,4.07428789]
[1773128226390,0.88134711,86.889,86.86,4.07428789]
[1773128226805,0.88134711,86.889,86.861,0.94245762]
[1773128227625,11.50886428,86.89,86.87,4.07428789]
[1773128227780,11.50886428,86.89,86.871,0.94245762]
[1773128228181,11.50832098,86.894,86.871,0.94245762]
[1773128228572,11.50814201,86.895,86.871,0.94245762]
[1773128228896,0.88134711,86.909,86.881,0.94245762]
[1773128229486,0.88134711,86.907,86.881,0.94245762]
[1773128230781,0.88134711,86.916,86.891,0.94245762]
[1773128231097,0.88134711,86.909,86.871,0.94245762]
[1773128231295,11.50562625,86.914,86.864,11.51221201]
[1773128231296,0.88134711,86.899,86.864,11.51221201]
[1773128231510,0.88134711,86.888,86.864,11.51221201]
[1773128231799,0.88134711,86.888,86.865,0.94245762]
[1773128232808,0.88134711,86.888,86.867,0.94245762]
[1773128233207,0.88134711,86.895,86.867,0.94245762]
[1773128233513,0.88134711,86.895,86.87,5.01674551]
[1773128233718,0.88134711,86.895,86.871,0.94245762]
[1773128236594,12.38962155,86.894,86.871,0.94245762]
[1773128237409,11.50827444,86.894,86.871,0.94245762]
[1773128239120,0.88134711,86.893,86.871,0.94245762]
[1773128241021,4.07428789,86.9,86.871,0.94245762]
[1773128241022,12.38988644,86.892,86.871,0.94245762]
[1773128241518,12.38988644,86.892,86.84,4.35861103]
[1773128241519,0.88134711,86.879,86.848,0.94245762]
[1773128242098,0.88134711,86.879,86.85,4.07428789]
[1773128242323,0.88134711,86.879,86.85,5.01674551]
[1773128242996,0.88134711,86.877,86.851,12.45642982]
[1773128243918,0.88134711,86.877,86.827,0.94245762]
[1773128244119,11.51039388,86.878,86.831,0.94245762]
[1773128244120,0.88134711,86.859,86.831,0.94245762]
[1773128244294,4.07428789,86.86,86.831,0.94245762]
[1773128244499,0.88134711,86.873,86.816,28.79621962]
[1773128244500,0.88134711,86.873,86.841,0.94245762]
[1773128246827,0.88134711,86.871,86.843,0.94245762]
[1773128247032,0.88134711,86.871,86.85,4.07428789]
[1773128247208,0.88134711,86.871,86.85,5.01674551]
[1773128247399,0.88134711,86.871,86.85,0.94245762]
[1773128248705,0.88134711,86.869,86.843,0.94245762]
[1773128249321,4.07428789,86.87,86.844,11.51490028]
[1773128249322,0.88134711,86.867,86.844,11.51490028]
[1773128249508,11.51171892,86.868,86.85,0.94245762]
[1773128249908,0.88134711,86.867,86.844,0.94245762]
[1773128250495,0.88134711,86.878,86.844,0.94245762]
[1773128251211,0.88134711,86.869,86.846,0.94245762]
[1773128251724,0.88134711,86.869,86.841,12.45771582]
[1773128251915,0.88134711,86.869,86.842,0.94245762]
[1773128253523,0.9703663,86.867,86.843,11.51503287]
[1773128253723,0.9703663,86.867,86.844,0.97836668]
[1773128256402,0.9703663,86.867,86.845,11.51476768]
[1773128256611,0.9703663,86.867,86.846,0.97836668]
[1773128256934,4.07462653,86.88,86.851,0.97836668]
[1773128257234,0.9703663,86.891,86.861,0.97836668]
[1773128258628,12.47797858,86.899,86.871,0.97836668]
[1773128258928,11.5070872,86.903,86.881,0.97836668]
[1773128259137,12.4774535,86.903,86.881,0.97836668]
[1773128260516,4.07462653,86.9,86.881,0.97836668]
[1773128260714,12.47771374,86.901,86.881,0.97836668]
[1773128261027,0.9703663,86.9,86.881,0.97836668]
[1773128261339,4.07462653,86.91,86.87,4.07462653]
[1773128261340,0.9703663,86.904,86.872,12.48955555]
[1773128261627,0.9703663,86.904,86.873,0.97836668]
[1773128263036,11.5070826,86.903,86.881,0.97836668]
[1773128264130,11.50661145,86.907,86.881,0.97836668]
[1773128265415,0.9703663,86.917,86.881,0.97836668]
[1773128266012,0.9703663,86.909,86.881,0.97836668]
[1773128266532,0.9703663,86.909,86.881,12.48836311]
[1773128267333,0.9703663,86.907,86.881,0.97836668]
[1773128268532,4.07462653,86.91,86.881,0.97836668]
[1773128268533,0.9703663,86.905,86.881,0.97836668]
[1773128269040,0.9703663,86.899,86.873,0.97836668]
[1773128270724,0.92979069,86.889,86.865,12.44163498]
[1773128271017,0.92979069,86.889,86.865,11.51200972]
[1773128271437,0.92979069,86.889,86.86,11.51267326]
[1773128272838,0.92979069,86.887,86.861,0.92962526]
[1773128273515,0.92979069,86.887,86.87,4.07462653]
[1773128273923,0.92979069,86.887,86.867,0.92962526]
[1773128274621,0.92979069,86.893,86.867,0.92962526]
[1773128274937,12.43833002,86.892,86.871,0.92962526]
[1773128276020,0.92979069,86.891,86.871,0.92962526]
[1773128276244,0.92979069,86.891,86.864,0.92962526]
[1773128277323,0.92979069,86.889,86.864,0.92962526]
[1773128278526,11.50906914,86.888,86.864,0.92962526]
[1773128278735,12.43885983,86.888,86.866,0.92962526]
[1773128278936,0.92979069,86.888,86.866,0.92962526]
[1773128279133,0.92979069,86.891,86.866,0.92962526]
[1773128279747,0.92979069,86.891,86.871,0.92962526]
[1773128280248,11.50858876,86.892,86.871,0.92962526]
[1773128280418,0.92979069,86.891,86.863,0.92962526]
[1773128281233,11.50880423,86.89,86.864,11.51224903]
[1773128281436,0.92979069,86.889,86.864,11.51224903]
[1773128282962,28.76903071,86.899,86.864,11.51224903]
[1773128282963,0.92979069,86.887,86.864,11.51224903]
[1773128283326,0.92979069,86.887,86.863,0.92962526]
[1773128284234,0.92979069,86.887,86.864,0.98216157]
[1773128285051,11.50933406,86.886,86.864,0.98216157]
[1773128285648,12.46976125,86.886,86.864,0.98216157]
[1773128286357,11.50887387,86.89,86.866,0.98216157]
[1773128288135,0.96042719,86.89,86.868,0.98216157]
[1773128289330,225.6016324,87.383,86.87,4.07462653]
[1773128289331,4.07462653,86.91,86.87,4.07462653]
[1773128289536,11.50628818,86.909,86.871,0.98216157]
[1773128289755,11.50628818,86.909,86.881,0.98216157]
[1773128290339,4.07462653,86.91,86.881,0.98216157]
[1773128290660,28.7625501,86.919,86.842,0.98216157]
[1773128290661,4.07462653,86.89,86.842,0.98216157]
[1773128290957,28.7625501,86.919,86.814,0.98216157]
[1773128290958,4.07462653,86.85,86.814,0.98216157]
[1773128291152,4.07462653,86.84,86.814,0.98216157]
[1773128291359,4.93868114,86.84,86.814,0.98216157]
[1773128291657,0.86405461,86.839,86.814,0.98216157]
[1773128291856,0.86405461,86.839,86.814,12.50104101]
[1773128292161,3.69383402,86.877,86.821,0.98216157]
[1773128292162,4.07462653,86.86,86.821,0.98216157]
[1773128292330,11.51158641,86.869,86.841,0.98216157]
[1773128294062,4.07462653,86.86,86.841,0.98216157]
[1773128297857,11.51291173,86.859,86.841,0.98216157]
[1773128298456,4.07462653,86.86,86.841,0.98216157]
[1773128299369,11.51229824,86.864,86.841,0.98216157]
[1773128299663,11.51158641,86.869,86.841,0.98216157]
[1773128299960,0.57868775,86.868,86.841,0.98216157]
[1773128300166,0.57868775,86.859,86.833,12.49841518]
[1773128300361,0.57868775,86.859,86.834,0.98216157]
[1773128302969,11.51304427,86.858,86.834,0.98216157]
[1773128303167,0.57212053,86.849,86.814,0.98216157]